[Event "Titled Tuesday Blitz January 17 Late 2023"]
[White "Pakleza, Zbigniew"]
[Black "Rosen, Eric"]
[WhiteFideId "1119290"]
[BlackFideId "2032562"]
[WhiteElo "2494"]
[BlackElo "2349"]
[Result "1-0"]
[Round "09"]
[TimeControl "180+2"]
[Date "2023.01.17"]
[WhiteClock "0:00:04"]
[BlackClock "0:00:02"]

1. d4 {[%clk 0:02:58]}  d5 {[%clk 0:02:58]} 2. Bf4 {[%clk 0:02:58]}  c5 {[%clk 0:02:55]} 3. e3 {[%clk 0:02:58]}  Nc6 {[%clk 0:02:55]} 4. c3 {[%clk 0:02:58]}  cxd4 {[%clk 0:02:54]} 5. cxd4 {[%clk 0:02:58]}  f6 {[%clk 0:02:40]} 6. Nc3 {[%clk 0:02:44]}  e5 {[%clk 0:02:28]} 7. Bg3 {[%clk 0:02:44]}  Be6 {[%clk 0:02:26]} 8. Nf3 {[%clk 0:02:41]}  Bd6 {[%clk 0:02:24]} 9. Bb5 {[%clk 0:02:36]}  Ne7 {[%clk 0:02:23]} 10. dxe5 {[%clk 0:02:32]}  fxe5 {[%clk 0:02:21]} 11. Bxe5 {[%clk 0:02:24]}  O-O {[%clk 0:02:12]} 12. Bxd6 {[%clk 0:02:20]}  Qxd6 {[%clk 0:02:12]} 13. O-O {[%clk 0:02:10]}  Bg4 {[%clk 0:02:09]} 14. Be2 {[%clk 0:02:09]}  Rad8 {[%clk 0:02:05]} 15. Nd4 {[%clk 0:02:02]}  Bxe2 {[%clk 0:01:55]} 16. Ncxe2 {[%clk 0:01:54]}  Rf6 {[%clk 0:01:51]} 17. Rc1 {[%clk 0:01:39]}  Ne5 {[%clk 0:01:48]} 18. Ng3 {[%clk 0:01:30]}  Rdf8 {[%clk 0:01:38]} 19. Rc2 {[%clk 0:01:12]}  Rh6 {[%clk 0:01:35]} 20. b3 {[%clk 0:00:47]}  Qf6 {[%clk 0:01:21]} 21. Rc7 {[%clk 0:00:47]}  b6 {[%clk 0:00:26]} 22. h3 {[%clk 0:00:42]}  a5 {[%clk 0:00:24]} 23. Qe2 {[%clk 0:00:30]}  Qd6 {[%clk 0:00:24]} 24. Rfc1 {[%clk 0:00:27]}  Rhf6 {[%clk 0:00:20]} 25. f4 {[%clk 0:00:21]}  N5g6 {[%clk 0:00:13]} 26. Nh5 {[%clk 0:00:09]}  R6f7 {[%clk 0:00:13]} 27. Qg4 {[%clk 0:00:09]}  a4 {[%clk 0:00:09]} 28. bxa4 {[%clk 0:00:07]}  Qa3 {[%clk 0:00:09]} 29. R1c3 {[%clk 0:00:05]}  Qb2 {[%clk 0:00:08]} 30. Kh2 {[%clk 0:00:05]}  Qf2 {[%clk 0:00:08]} 31. f5 {[%clk 0:00:04]}  Nxf5 {[%clk 0:00:06]} 32. Nxf5 {[%clk 0:00:03]}  Qxf5 {[%clk 0:00:05]} 33. Qxf5 {[%clk 0:00:03]}  Rxf5 {[%clk 0:00:06]} 34. Rxg7+ {[%clk 0:00:03]}  Kh8 {[%clk 0:00:06]} 35. Rxg6 {[%clk 0:00:02]}  hxg6 {[%clk 0:00:07]} 36. Nf4 {[%clk 0:00:02]}  Kg7 {[%clk 0:00:06]} 37. Ne6+ {[%clk 0:00:02]}  Kf7 {[%clk 0:00:03]} 38. Nxf8 {[%clk 0:00:03]}  Kxf8 {[%clk 0:00:04]} 39. Rc6 {[%clk 0:00:03]}  Re5 {[%clk 0:00:02]} 40. Rxg6 {[%clk 0:00:03]}  Rxe3 {[%clk 0:00:02]} 41. Rxb6 {[%clk 0:00:03]}  Ra3 {[%clk 0:00:02]} 42. Rd6 {[%clk 0:00:03]}  Rxa4 {[%clk 0:00:02]} 43. Rxd5 {[%clk 0:00:04]}  Rxa2 {[%clk 0:00:02]} 44. Rd7 {[%clk 0:00:03]}  Kg8 {[%clk 0:00:03]} 45. Rb7 {[%clk 0:00:04]}  Ra5 {[%clk 0:00:03]} 46. h4 {[%clk 0:00:04]}  Ra4 {[%clk 0:00:03]} 47. g3 {[%clk 0:00:04]}  Ra2+ {[%clk 0:00:03]} 48. Kh3 {[%clk 0:00:05]}  Ra1 {[%clk 0:00:04]} 49. h5 {[%clk 0:00:05]}  Ra4 {[%clk 0:00:04]} 50. g4 {[%clk 0:00:05]}  Ra1 {[%clk 0:00:04]} 51. Kh4 {[%clk 0:00:06]}  Ra5 {[%clk 0:00:05]} 52. h6 {[%clk 0:00:06]}  Ra6 {[%clk 0:00:04]} 53. g5 {[%clk 0:00:06]}  Kh8 {[%clk 0:00:04]} 54. Kh5 {[%clk 0:00:06]}  Ra8 {[%clk 0:00:03]} 55. Rb6 {[%clk 0:00:04]}  Rc8 {[%clk 0:00:03]} 56. g6 {[%clk 0:00:03]}  Rc5+ {[%clk 0:00:03]} 57. Kg4 {[%clk 0:00:04]}  Rc4+ {[%clk 0:00:03]} 58. Kf3 {[%clk 0:00:04]}  Rc8 {[%clk 0:00:02]} 59. Rf6 {[%clk 0:00:03]}  Kg8 {[%clk 0:00:02]} 60. Kg4 {[%clk 0:00:04]}  Rc4+ {[%clk 0:00:02]} 61. Kg5 {[%clk 0:00:04]}  Rc5+ {[%clk 0:00:02]} 62. Rf5 {[%clk 0:00:04]}  Rc8 {[%clk 0:00:02]} 63. h7+ {[%clk 0:00:04]}  Kh8 {[%clk 0:00:02]} 64. Kh6 {[%clk 0:00:04]}  Rc6 {[%clk 0:00:02]} 65. Rf8# {[%clk 0:00:04]} 1-0


[Site "https://www.chess.com"]

[Event "Titled Tuesday Blitz January 17 Late 2023"]
[White "Arenas, David"]
[Black "Nasuta, Grzegorz"]
[WhiteFideId "4403177"]
[BlackFideId "1141686"]
[WhiteElo "2426"]
[BlackElo "2552"]
[Result "0-1"]
[Round "09"]
[TimeControl "180+2"]
[Date "2023.01.17"]
[WhiteClock "0:00:12"]
[BlackClock "0:00:07"]

1. e4 {[%clk 0:03:00]}  c5 {[%clk 0:02:59]} 2. Nf3 {[%clk 0:02:59]}  d6 {[%clk 0:02:59]} 3. Nc3 {[%clk 0:02:59]}  a6 {[%clk 0:02:59]} 4. g3 {[%clk 0:02:58]}  b5 {[%clk 0:02:56]} 5. d4 {[%clk 0:02:57]}  cxd4 {[%clk 0:02:56]} 6. Nxd4 {[%clk 0:02:58]}  Bb7 {[%clk 0:02:56]} 7. Bg2 {[%clk 0:02:59]}  e5 {[%clk 0:02:51]} 8. Nf5 {[%clk 0:02:57]}  Nf6 {[%clk 0:02:51]} 9. a3 {[%clk 0:02:46]}  g6 {[%clk 0:02:41]} 10. Ne3 {[%clk 0:02:41]}  Nbd7 {[%clk 0:02:41]} 11. O-O {[%clk 0:02:40]}  Nb6 {[%clk 0:02:37]} 12. Ng4 {[%clk 0:02:30]}  Nxg4 {[%clk 0:02:31]} 13. Qxg4 {[%clk 0:02:31]}  h5 {[%clk 0:02:22]} 14. Qe2 {[%clk 0:02:25]}  Bg7 {[%clk 0:02:22]} 15. Rd1 {[%clk 0:02:22]}  Qc7 {[%clk 0:02:13]} 16. h4 {[%clk 0:02:07]}  O-O {[%clk 0:02:12]} 17. Na2 {[%clk 0:01:42]}  Rad8 {[%clk 0:01:46]} 18. Be3 {[%clk 0:01:39]}  Nc4 {[%clk 0:01:43]} 19. c3 {[%clk 0:01:38]}  a5 {[%clk 0:01:18]} 20. Nc1 {[%clk 0:01:34]}  Kh7 {[%clk 0:01:08]} 21. Nb3 {[%clk 0:01:29]}  Bc6 {[%clk 0:00:47]} 22. Rab1 {[%clk 0:01:19]}  Qb7 {[%clk 0:00:43]} 23. Nd2 {[%clk 0:01:17]}  Nxe3 {[%clk 0:00:23]} 24. Qxe3 {[%clk 0:01:15]}  Bh6 {[%clk 0:00:23]} 25. Qd3 {[%clk 0:01:14]}  f5 {[%clk 0:00:23]} 26. Nb3 {[%clk 0:00:55]}  fxe4 {[%clk 0:00:20]} 27. Qe2 {[%clk 0:00:45]}  Qb6 {[%clk 0:00:18]} 28. Rf1 {[%clk 0:00:37]}  d5 {[%clk 0:00:18]} 29. Rbd1 {[%clk 0:00:35]}  Rd7 {[%clk 0:00:15]} 30. Bh3 {[%clk 0:00:31]}  Re7 {[%clk 0:00:14]} 31. Bg2 {[%clk 0:00:21]}  Ref7 {[%clk 0:00:14]} 32. Nd2 {[%clk 0:00:15]}  Rf6 {[%clk 0:00:08]} 33. c4 {[%clk 0:00:12]}  bxc4 {[%clk 0:00:07]} 0-1


[Site "https://www.chess.com"]

[Event "Titled Tuesday Blitz January 17 Late 2023"]
[White "Cori T., Deysi"]
[Black "Yuan, Qingyu"]
[WhiteFideId "3801934"]
[BlackFideId "8609772"]
[WhiteElo "2362"]
[BlackElo "2373"]
[Result "0-1"]
[Round "09"]
[TimeControl "180+2"]
[Date "2023.01.17"]
[WhiteClock "0:00:15"]
[BlackClock "0:00:13"]

1. Nf3 {[%clk 0:03:00]}  d5 {[%clk 0:03:00]} 2. d4 {[%clk 0:03:00]}  Nf6 {[%clk 0:03:00]} 3. c4 {[%clk 0:03:00]}  e6 {[%clk 0:03:01]} 4. e3 {[%clk 0:03:00]}  Be7 {[%clk 0:03:00]} 5. Nc3 {[%clk 0:03:00]}  O-O {[%clk 0:02:59]} 6. Qc2 {[%clk 0:03:00]}  c5 {[%clk 0:02:52]} 7. dxc5 {[%clk 0:02:59]}  Na6 {[%clk 0:02:40]} 8. cxd5 {[%clk 0:02:58]}  Nxd5 {[%clk 0:02:38]} 9. Bd2 {[%clk 0:02:24]}  Ndb4 {[%clk 0:02:26]} 10. Qb1 {[%clk 0:01:58]}  Nxc5 {[%clk 0:02:24]} 11. a3 {[%clk 0:01:55]}  Nbd3+ {[%clk 0:02:16]} 12. Bxd3 {[%clk 0:01:55]}  Nxd3+ {[%clk 0:02:16]} 13. Ke2 {[%clk 0:01:55]}  Nc5 {[%clk 0:02:12]} 14. b4 {[%clk 0:01:55]}  Nd7 {[%clk 0:02:09]} 15. Rd1 {[%clk 0:01:51]}  b6 {[%clk 0:02:01]} 16. e4 {[%clk 0:01:50]}  Bb7 {[%clk 0:01:56]} 17. Kf1 {[%clk 0:01:32]}  Qc7 {[%clk 0:01:52]} 18. Qb3 {[%clk 0:01:30]}  Rac8 {[%clk 0:01:48]} 19. Rac1 {[%clk 0:01:30]}  Qb8 {[%clk 0:01:48]} 20. Be3 {[%clk 0:01:18]}  Nf6 {[%clk 0:01:45]} 21. Qb1 {[%clk 0:01:06]}  Rc4 {[%clk 0:01:30]} 22. Nd2 {[%clk 0:01:02]}  Rc6 {[%clk 0:01:21]} 23. g3 {[%clk 0:00:48]}  Rfc8 {[%clk 0:01:13]} 24. Qd3 {[%clk 0:00:25]}  Ng4 {[%clk 0:00:52]} 25. Bf4 {[%clk 0:00:19]}  e5 {[%clk 0:00:48]} 26. Be3 {[%clk 0:00:18]}  Nxh2+ {[%clk 0:00:45]} 27. Kg2 {[%clk 0:00:19]}  Ng4 {[%clk 0:00:46]} 28. Nd5 {[%clk 0:00:19]}  Rxc1 {[%clk 0:00:41]} 29. Nxe7+ {[%clk 0:00:19]}  Kh8 {[%clk 0:00:30]} 30. Nxc8 {[%clk 0:00:18]}  Rxc8 {[%clk 0:00:31]} 31. f3 {[%clk 0:00:18]}  Nxe3+ {[%clk 0:00:29]} 32. Qxe3 {[%clk 0:00:19]}  Qd6 {[%clk 0:00:27]} 33. Qb3 {[%clk 0:00:16]}  f6 {[%clk 0:00:20]} 34. Nc4 {[%clk 0:00:16]}  Qc7 {[%clk 0:00:20]} 35. Ne3 {[%clk 0:00:16]}  h6 {[%clk 0:00:19]} 36. Nf5 {[%clk 0:00:16]}  Qc2+ {[%clk 0:00:17]} 37. Qxc2 {[%clk 0:00:16]}  Rxc2+ {[%clk 0:00:17]} 38. Kh3 {[%clk 0:00:16]}  Bc8 {[%clk 0:00:16]} 39. Rd8+ {[%clk 0:00:16]}  Kh7 {[%clk 0:00:17]} 40. g4 {[%clk 0:00:17]}  Bxf5 {[%clk 0:00:16]} 41. gxf5 {[%clk 0:00:16]}  Rc3 {[%clk 0:00:17]} 42. Kg4 {[%clk 0:00:17]}  Rxa3 {[%clk 0:00:17]} 43. Rd7 {[%clk 0:00:17]}  a5 {[%clk 0:00:17]} 44. b5 {[%clk 0:00:18]}  Rb3 {[%clk 0:00:16]} 45. Rd5 {[%clk 0:00:17]}  Rb1 {[%clk 0:00:15]} 46. Kg3 {[%clk 0:00:16]}  a4 {[%clk 0:00:15]} 47. f4 {[%clk 0:00:16]}  exf4+ {[%clk 0:00:12]} 48. Kxf4 {[%clk 0:00:16]}  a3 {[%clk 0:00:13]} 49. e5 {[%clk 0:00:14]}  fxe5+ {[%clk 0:00:13]} 50. Kxe5 {[%clk 0:00:14]}  a2 {[%clk 0:00:14]} 51. f6 {[%clk 0:00:14]}  Re1+ {[%clk 0:00:14]} 52. Kd6 {[%clk 0:00:14]}  a1=Q {[%clk 0:00:14]} 53. f7 {[%clk 0:00:14]}  Qf6+ {[%clk 0:00:14]} 54. Kc7 {[%clk 0:00:15]}  Qxf7+ {[%clk 0:00:14]} 55. Kc6 {[%clk 0:00:15]}  Rc1+ {[%clk 0:00:13]} 56. Kd6 {[%clk 0:00:15]}  Qc7+ {[%clk 0:00:13]} 57. Ke6 {[%clk 0:00:15]}  Re1+ {[%clk 0:00:13]} 58. Kf5 {[%clk 0:00:15]}  Qf7+ {[%clk 0:00:13]} 0-1


[Site "https://www.chess.com"]

[Event "Titled Tuesday Blitz January 17 Late 2023"]
[White "Fernandez Garcia, Gumersindo"]
[Black "Timmermans, Mark"]
[WhiteFideId "24516740"]
[BlackFideId "1026399"]
[WhiteElo "2160"]
[BlackElo "2392"]
[Result "0-1"]
[Round "09"]
[TimeControl "180+2"]
[Date "2023.01.17"]
[WhiteClock "0:00:17"]
[BlackClock "0:00:50"]

1. d4 {[%clk 0:02:59]}  Nf6 {[%clk 0:02:59]} 2. c4 {[%clk 0:02:59]}  e6 {[%clk 0:02:59]} 3. Nf3 {[%clk 0:02:59]}  d5 {[%clk 0:02:59]} 4. g3 {[%clk 0:03:00]}  Be7 {[%clk 0:02:59]} 5. Bg2 {[%clk 0:03:00]}  O-O {[%clk 0:02:59]} 6. Qc2 {[%clk 0:03:00]}  dxc4 {[%clk 0:02:59]} 7. Nbd2 {[%clk 0:02:59]}  b5 {[%clk 0:02:57]} 8. a4 {[%clk 0:02:59]}  c6 {[%clk 0:02:57]} 9. axb5 {[%clk 0:02:58]}  cxb5 {[%clk 0:02:58]} 10. Ng5 {[%clk 0:02:58]}  h6 {[%clk 0:02:52]} 11. h4 {[%clk 0:02:56]}  g6 {[%clk 0:02:41]} 12. Bxa8 {[%clk 0:02:55]}  hxg5 {[%clk 0:02:40]} 13. hxg5 {[%clk 0:02:56]}  Nd5 {[%clk 0:02:40]} 14. Bxd5 {[%clk 0:02:43]}  Qxd5 {[%clk 0:02:41]} 15. Nf3 {[%clk 0:02:43]}  Nc6 {[%clk 0:02:13]} 16. Be3 {[%clk 0:02:19]}  a5 {[%clk 0:02:01]} 17. Rh4 {[%clk 0:02:14]}  Rd8 {[%clk 0:01:54]} 18. Kf1 {[%clk 0:02:12]}  Bf8 {[%clk 0:01:54]} 19. Qe4 {[%clk 0:02:07]}  Qxe4 {[%clk 0:01:48]} 20. Rxe4 {[%clk 0:02:07]}  Bg7 {[%clk 0:01:49]} 21. Ne5 {[%clk 0:02:00]}  Bb7 {[%clk 0:01:47]} 22. Nxc6 {[%clk 0:01:57]}  Bxc6 {[%clk 0:01:48]} 23. Rh4 {[%clk 0:01:57]}  a4 {[%clk 0:01:48]} 24. Rc1 {[%clk 0:01:47]}  Bd5 {[%clk 0:01:47]} 25. Bd2 {[%clk 0:01:42]}  Bc6 {[%clk 0:01:40]} 26. Bc3 {[%clk 0:01:41]}  Rd5 {[%clk 0:01:37]} 27. Rg4 {[%clk 0:01:24]}  Rd8 {[%clk 0:01:29]} 28. e3 {[%clk 0:01:20]}  Bf8 {[%clk 0:01:29]} 29. Bd2 {[%clk 0:01:14]}  b4 {[%clk 0:01:28]} 30. Ke1 {[%clk 0:01:09]}  Bb5 {[%clk 0:01:27]} 31. Re4 {[%clk 0:01:05]}  a3 {[%clk 0:01:25]} 32. bxa3 {[%clk 0:01:03]}  c3 {[%clk 0:01:26]} 33. Bxc3 {[%clk 0:01:00]}  bxc3 {[%clk 0:01:27]} 34. Rxc3 {[%clk 0:01:01]}  Ra8 {[%clk 0:01:28]} 35. Re5 {[%clk 0:01:00]}  Bd7 {[%clk 0:01:23]} 36. d5 {[%clk 0:00:50]}  Bg7 {[%clk 0:01:21]} 37. f4 {[%clk 0:00:44]}  Bxe5 {[%clk 0:01:19]} 38. fxe5 {[%clk 0:00:45]}  exd5 {[%clk 0:01:19]} 39. Kd2 {[%clk 0:00:44]}  Kf8 {[%clk 0:01:17]} 40. Kd3 {[%clk 0:00:44]}  Ra4 {[%clk 0:01:16]} 41. Kc2 {[%clk 0:00:38]}  Ke7 {[%clk 0:01:16]} 42. Kb3 {[%clk 0:00:38]}  Re4 {[%clk 0:01:16]} 43. Rd3 {[%clk 0:00:36]}  Rxe5 {[%clk 0:01:06]} 44. a4 {[%clk 0:00:36]}  Rxg5 {[%clk 0:01:01]} 45. a5 {[%clk 0:00:34]}  Rxg3 {[%clk 0:00:57]} 46. Kb4 {[%clk 0:00:31]}  Kd6 {[%clk 0:00:56]} 47. a6 {[%clk 0:00:29]}  Rg4+ {[%clk 0:00:56]} 48. Ka5 {[%clk 0:00:28]}  Kc5 {[%clk 0:00:56]} 49. Rc3+ {[%clk 0:00:26]}  Rc4 {[%clk 0:00:56]} 50. Ra3 {[%clk 0:00:23]}  Ra4+ {[%clk 0:00:51]} 51. Rxa4 {[%clk 0:00:16]}  Bxa4 {[%clk 0:00:51]} 52. Kxa4 {[%clk 0:00:17]}  Kb6 {[%clk 0:00:49]} 53. Kb4 {[%clk 0:00:17]}  g5 {[%clk 0:00:49]} 54. a7 {[%clk 0:00:15]}  Kxa7 {[%clk 0:00:49]} 55. Kc5 {[%clk 0:00:16]}  g4 {[%clk 0:00:50]} 56. Kxd5 {[%clk 0:00:17]}  g3 {[%clk 0:00:50]} 0-1


[Site "https://www.chess.com"]

[Event "Titled Tuesday Blitz January 17 Late 2023"]
[White "Karttunen, Mika"]
[Black "Domingo Nunez, Ruben"]
[WhiteFideId "502081"]
[BlackFideId "22245570"]
[WhiteElo "2490"]
[BlackElo "2416"]
[Result "0-1"]
[Round "09"]
[TimeControl "180+2"]
[Date "2023.01.17"]
[WhiteClock "0:00:06"]
[BlackClock "0:00:03"]

1. e4 {[%clk 0:03:00]}  g6 {[%clk 0:02:56]} 2. d4 {[%clk 0:03:00]}  Bg7 {[%clk 0:02:56]} 3. c4 {[%clk 0:02:54]}  d6 {[%clk 0:02:56]} 4. Nc3 {[%clk 0:02:54]}  Nd7 {[%clk 0:02:56]} 5. Be3 {[%clk 0:02:52]}  e5 {[%clk 0:02:54]} 6. d5 {[%clk 0:02:52]}  a5 {[%clk 0:02:54]} 7. Bd3 {[%clk 0:02:49]}  Nc5 {[%clk 0:02:54]} 8. Bc2 {[%clk 0:02:49]}  b6 {[%clk 0:02:53]} 9. Qd2 {[%clk 0:02:46]}  h5 {[%clk 0:02:53]} 10. Nf3 {[%clk 0:02:41]}  Bg4 {[%clk 0:02:51]} 11. Ng5 {[%clk 0:02:35]}  f6 {[%clk 0:02:47]} 12. h3 {[%clk 0:02:32]}  Bd7 {[%clk 0:02:45]} 13. Nf3 {[%clk 0:02:32]}  Bh6 {[%clk 0:02:46]} 14. O-O-O {[%clk 0:02:26]}  Qe7 {[%clk 0:02:42]} 15. Kb1 {[%clk 0:02:25]}  Bxe3 {[%clk 0:02:39]} 16. Qxe3 {[%clk 0:02:20]}  Nh6 {[%clk 0:02:39]} 17. Nd2 {[%clk 0:02:15]}  Nf7 {[%clk 0:02:38]} 18. Rdf1 {[%clk 0:01:46]}  f5 {[%clk 0:02:17]} 19. f4 {[%clk 0:01:37]}  exf4 {[%clk 0:02:17]} 20. Qxf4 {[%clk 0:01:32]}  g5 {[%clk 0:02:15]} 21. Qf2 {[%clk 0:01:30]}  f4 {[%clk 0:02:13]} 22. h4 {[%clk 0:01:30]}  O-O-O {[%clk 0:01:10]} 23. hxg5 {[%clk 0:01:30]}  Nxg5 {[%clk 0:01:11]} 24. Qxf4 {[%clk 0:01:28]}  Rdg8 {[%clk 0:01:09]} 25. Qf6 {[%clk 0:01:17]}  Qe8 {[%clk 0:01:09]} 26. Qd4 {[%clk 0:01:09]}  Nf7 {[%clk 0:01:06]} 27. Rf2 {[%clk 0:00:57]}  Ne5 {[%clk 0:01:06]} 28. Nf3 {[%clk 0:00:57]}  Ng4 {[%clk 0:01:02]} 29. Re2 {[%clk 0:00:56]}  Ne5 {[%clk 0:00:48]} 30. Nxe5 {[%clk 0:00:53]}  dxe5 {[%clk 0:00:49]} 31. Qd2 {[%clk 0:00:52]}  Rh7 {[%clk 0:00:43]} 32. d6 {[%clk 0:00:49]}  c6 {[%clk 0:00:42]} 33. Rf2 {[%clk 0:00:40]}  Rhg7 {[%clk 0:00:28]} 34. Nd1 {[%clk 0:00:40]}  Ne6 {[%clk 0:00:25]} 35. Ne3 {[%clk 0:00:36]}  Nd4 {[%clk 0:00:25]} 36. Bd1 {[%clk 0:00:36]}  Kb7 {[%clk 0:00:13]} 37. Bxh5 {[%clk 0:00:29]}  Qd8 {[%clk 0:00:14]} 38. Bd1 {[%clk 0:00:27]}  Be6 {[%clk 0:00:13]} 39. c5 {[%clk 0:00:20]}  bxc5 {[%clk 0:00:14]} 40. Rh5 {[%clk 0:00:19]}  Qxd6 {[%clk 0:00:14]} 41. b3 {[%clk 0:00:13]}  Ra8 {[%clk 0:00:14]} 42. Rh6 {[%clk 0:00:11]}  a4 {[%clk 0:00:13]} 43. Nc4 {[%clk 0:00:12]}  Qe7 {[%clk 0:00:13]} 44. Nxe5 {[%clk 0:00:10]}  axb3 {[%clk 0:00:12]} 45. axb3 {[%clk 0:00:09]}  Bxb3 {[%clk 0:00:12]} 46. Nxc6 {[%clk 0:00:08]}  Qxe4+ {[%clk 0:00:10]} 47. Bc2 {[%clk 0:00:06]}  Bxc2+ {[%clk 0:00:10]} 48. Kb2 {[%clk 0:00:06]}  Nxc6 {[%clk 0:00:08]} 49. Rxc6 {[%clk 0:00:04]}  Qxc6 {[%clk 0:00:07]} 50. Qxc2 {[%clk 0:00:04]}  Qb6+ {[%clk 0:00:08]} 51. Kc1 {[%clk 0:00:04]}  Ra1+ {[%clk 0:00:08]} 52. Kd2 {[%clk 0:00:05]}  Rd7+ {[%clk 0:00:08]} 53. Ke3 {[%clk 0:00:05]}  Re1+ {[%clk 0:00:06]} 54. Kf3 {[%clk 0:00:06]}  Rf7+ {[%clk 0:00:06]} 55. Kg3 {[%clk 0:00:06]}  Qd6+ {[%clk 0:00:03]} 56. Kg4 {[%clk 0:00:06]}  Qe6+ {[%clk 0:00:03]} 57. Kg3 {[%clk 0:00:06]}  Rg7+ {[%clk 0:00:03]} 58. Kf4 {[%clk 0:00:06]}  Qe5+ {[%clk 0:00:03]} 59. Kf3 {[%clk 0:00:06]}  Qe3# {[%clk 0:00:03]} 0-1


[Site "https://www.chess.com"]

[Event "Titled Tuesday Blitz January 17 Late 2023"]
[White "Flores Quillas, Diego Saul Rodri"]
[Black "Reprintsev, Alexander"]
[WhiteFideId "3822508"]
[BlackFideId "14100541"]
[WhiteElo "2359"]
[BlackElo "2253"]
[Result "0-1"]
[Round "09"]
[TimeControl "180+2"]
[Date "2023.01.17"]
[WhiteClock "0:00:11"]
[BlackClock "0:00:20"]

1. e4 {[%clk 0:02:50]}  d5 {[%clk 0:02:56]} 2. exd5 {[%clk 0:02:49]}  Qxd5 {[%clk 0:02:56]} 3. Nc3 {[%clk 0:02:49]}  Qa5 {[%clk 0:02:57]} 4. Bc4 {[%clk 0:02:49]}  Nf6 {[%clk 0:02:57]} 5. d3 {[%clk 0:02:49]}  Bg4 {[%clk 0:02:56]} 6. f3 {[%clk 0:02:50]}  Be6 {[%clk 0:02:56]} 7. Bxe6 {[%clk 0:02:48]}  fxe6 {[%clk 0:02:57]} 8. Qe2 {[%clk 0:02:47]}  Nc6 {[%clk 0:02:57]} 9. Be3 {[%clk 0:02:40]}  Nd5 {[%clk 0:02:53]} 10. Qd2 {[%clk 0:02:37]}  O-O-O {[%clk 0:02:42]} 11. Nge2 {[%clk 0:02:36]}  g6 {[%clk 0:02:36]} 12. O-O {[%clk 0:02:17]}  Bg7 {[%clk 0:02:35]} 13. a3 {[%clk 0:02:16]}  Nxe3 {[%clk 0:02:22]} 14. Qxe3 {[%clk 0:02:16]}  Nd4 {[%clk 0:02:22]} 15. Rac1 {[%clk 0:02:02]}  Qb6 {[%clk 0:02:12]} 16. Kh1 {[%clk 0:01:58]}  Nxe2 {[%clk 0:01:34]} 17. Qxe2 {[%clk 0:01:54]}  Qxb2 {[%clk 0:01:31]} 18. Qxe6+ {[%clk 0:01:53]}  Kb8 {[%clk 0:01:30]} 19. Ne4 {[%clk 0:01:51]}  Qe5 {[%clk 0:01:29]} 20. Qb3 {[%clk 0:01:38]}  Qb2 {[%clk 0:00:59]} 21. Rb1 {[%clk 0:01:32]}  Qxb3 {[%clk 0:00:59]} 22. Rxb3 {[%clk 0:01:33]}  b6 {[%clk 0:00:58]} 23. Re1 {[%clk 0:01:31]}  Bf6 {[%clk 0:00:55]} 24. g3 {[%clk 0:01:13]}  Rd5 {[%clk 0:00:52]} 25. Kg2 {[%clk 0:00:57]}  Rhd8 {[%clk 0:00:51]} 26. Re2 {[%clk 0:00:52]}  Kb7 {[%clk 0:00:51]} 27. h4 {[%clk 0:00:48]}  h5 {[%clk 0:00:51]} 28. Rb4 {[%clk 0:00:31]}  Ra5 {[%clk 0:00:45]} 29. Nxf6 {[%clk 0:00:26]}  exf6 {[%clk 0:00:44]} 30. Re6 {[%clk 0:00:19]}  Rd6 {[%clk 0:00:38]} 31. Rxd6 {[%clk 0:00:16]}  cxd6 {[%clk 0:00:36]} 32. a4 {[%clk 0:00:12]}  Rc5 {[%clk 0:00:33]} 33. c4 {[%clk 0:00:12]}  d5 {[%clk 0:00:29]} 34. Kf2 {[%clk 0:00:10]}  a5 {[%clk 0:00:28]} 35. Rb5 {[%clk 0:00:09]}  Rxb5 {[%clk 0:00:25]} 36. cxb5 {[%clk 0:00:08]}  d4 {[%clk 0:00:26]} 37. g4 {[%clk 0:00:07]}  Kc7 {[%clk 0:00:26]} 38. Kg3 {[%clk 0:00:06]}  Kd6 {[%clk 0:00:25]} 39. Kf4 {[%clk 0:00:03]}  Kc5 {[%clk 0:00:19]} 40. gxh5 {[%clk 0:00:02]}  gxh5 {[%clk 0:00:19]} 41. Kf5 {[%clk 0:00:03]}  Kb4 {[%clk 0:00:18]} 42. Kxf6 {[%clk 0:00:03]}  Kc3 {[%clk 0:00:19]} 43. Kg5 {[%clk 0:00:03]}  Kxd3 {[%clk 0:00:19]} 44. f4 {[%clk 0:00:04]}  Kc2 {[%clk 0:00:17]} 45. f5 {[%clk 0:00:05]}  d3 {[%clk 0:00:18]} 46. f6 {[%clk 0:00:05]}  d2 {[%clk 0:00:19]} 47. f7 {[%clk 0:00:06]}  d1=Q {[%clk 0:00:19]} 48. f8=Q {[%clk 0:00:07]}  Qd5+ {[%clk 0:00:19]} 49. Qf5+ {[%clk 0:00:06]}  Qxf5+ {[%clk 0:00:19]} 50. Kxf5 {[%clk 0:00:07]}  Kb3 {[%clk 0:00:20]} 51. Kg5 {[%clk 0:00:08]}  Kxa4 {[%clk 0:00:20]} 52. Kxh5 {[%clk 0:00:08]}  Kxb5 {[%clk 0:00:21]} 53. Kg4 {[%clk 0:00:09]}  a4 {[%clk 0:00:22]} 54. h5 {[%clk 0:00:10]}  a3 {[%clk 0:00:23]} 55. h6 {[%clk 0:00:10]}  a2 {[%clk 0:00:20]} 56. h7 {[%clk 0:00:11]}  a1=Q {[%clk 0:00:20]} 0-1


[Site "https://www.chess.com"]